Department family,Entity,Date,Expense type,Expense area,Supplier,Transaction number,Amount
Department of Health,Leicestershire Partnership NHS Trust,03/05/2022,Nurse - Band 6 -Agency,AMH - Central Access Point,HCL NURSING,HNSI0001021,424.77
Department of Health,Leicestershire Partnership NHS Trust,03/05/2022,Nurse - Band 6 -Agency,Adult County West Leicestershire CMHT,HCL NURSING,HNSI0001021,2073.51
Department of Health,Leicestershire Partnership NHS Trust,03/05/2022,NURSE - BAND 2 - AGENCY,Agnes Unit,HCL NURSING,HNSI0001021,33017.9
Department of Health,Leicestershire Partnership NHS Trust,03/05/2022,NURSE - BAND 5 - AGENCY,Agnes Unit,HCL NURSING,HNSI0001021,18448.02
Department of Health,Leicestershire Partnership NHS Trust,03/05/2022,NURSE - BAND 5 - AGENCY,Ashby Ward (Bradgate Unit),HCL NURSING,HNSI0001021,2812.62
Department of Health,Leicestershire Partnership NHS Trust,03/05/2022,NURSE - BAND 2 - AGENCY,Aston Ward (Bradgate Unit),HCL NURSING,HNSI0001021,7666.14
Department of Health,Leicestershire Partnership NHS Trust,03/05/2022,NURSE - BAND 5 - AGENCY,Aston Ward (Bradgate Unit),HCL NURSING,HNSI0001021,12714.87
Department of Health,Leicestershire Partnership NHS Trust,03/05/2022,NURSE - BAND 2 - AGENCY,Beaumont Ward - Bradgate Unit,HCL NURSING,HNSI0001021,4926.38
Department of Health,Leicestershire Partnership NHS Trust,03/05/2022,NURSE - BAND 5 - AGENCY,Beaumont Ward - Bradgate Unit,HCL NURSING,HNSI0001021,13388.43
Department of Health,Leicestershire Partnership NHS Trust,03/05/2022,NURSE - BAND 2 - AGENCY,Belvoir Psychiatric Intensive Care Unit,HCL NURSING,HNSI0001021,912.05
Department of Health,Leicestershire Partnership NHS Trust,03/05/2022,NURSE - BAND 5 - AGENCY,Belvoir Psychiatric Intensive Care Unit,HCL NURSING,HNSI0001021,4557.15
Department of Health,Leicestershire Partnership NHS Trust,03/05/2022,NURSE - BAND 2 - AGENCY,Bosworth Ward - Bradgate Unit,HCL NURSING,HNSI0001021,2376.82
Department of Health,Leicestershire Partnership NHS Trust,03/05/2022,NURSE - BAND 5 - AGENCY,Bosworth Ward - Bradgate Unit,HCL NURSING,HNSI0001021,1660.83
Department of Health,Leicestershire Partnership NHS Trust,03/05/2022,NURSE - BAND 2 - AGENCY,Cedar (Willows),HCL NURSING,HNSI0001021,1650.12
Department of Health,Leicestershire Partnership NHS Trust,03/05/2022,NURSE - BAND 5 - AGENCY,Cedar (Willows),HCL NURSING,HNSI0001021,1546.44
Department of Health,Leicestershire Partnership NHS Trust,03/05/2022,Nurse - Band 6 -Agency,City West CMHT MHSOP,HCL NURSING,HNSI0001021,844.8
Department of Health,Leicestershire Partnership NHS Trust,03/05/2022,NURSE - BAND 2 - AGENCY,Coleman Ward,HCL NURSING,HNSI0001021,9636.69
Department of Health,Leicestershire Partnership NHS Trust,03/05/2022,NURSE - BAND 5 - AGENCY,Coleman Ward,HCL NURSING,HNSI0001021,3856.68
Department of Health,Leicestershire Partnership NHS Trust,03/05/2022,NURSE - BAND 5 - AGENCY,Crisis Resolution,HCL NURSING,HNSI0001021,2309.45
Department of Health,Leicestershire Partnership NHS Trust,03/05/2022,NURSE - BAND 2 - AGENCY,Griffin Ward (HPC),HCL NURSING,HNSI0001021,11475
Department of Health,Leicestershire Partnership NHS Trust,03/05/2022,NURSE - BAND 5 - AGENCY,Griffin Ward (HPC),HCL NURSING,HNSI0001021,4591.57
Department of Health,Leicestershire Partnership NHS Trust,03/05/2022,NURSE - BAND 2 - AGENCY,Heather Ward,HCL NURSING,HNSI0001021,4248.63
Department of Health,Leicestershire Partnership NHS Trust,03/05/2022,NURSE - BAND 5 - AGENCY,Heather Ward,HCL NURSING,HNSI0001021,4886.77
Department of Health,Leicestershire Partnership NHS Trust,03/05/2022,NURSE - BAND 2 - AGENCY,Kirby Ward,HCL NURSING,HNSI0001021,7426.54
Department of Health,Leicestershire Partnership NHS Trust,03/05/2022,NURSE - BAND 5 - AGENCY,Kirby Ward,HCL NURSING,HNSI0001021,3569.7
Department of Health,Leicestershire Partnership NHS Trust,03/05/2022,NURSE - BAND 2 - AGENCY,Maple Ward,HCL NURSING,HNSI0001021,1975.63
Department of Health,Leicestershire Partnership NHS Trust,03/05/2022,NURSE - BAND 5 - AGENCY,Maple Ward,HCL NURSING,HNSI0001021,2195.93
Department of Health,Leicestershire Partnership NHS Trust,03/05/2022,Nurse - Band 6 -Agency,Mental Health Liaison Team,HCL NURSING,HNSI0001021,1431.62
Department of Health,Leicestershire Partnership NHS Trust,03/05/2022,NURSE - BAND 2 - AGENCY,Mill Lodge,HCL NURSING,HNSI0001021,2988.95
Department of Health,Leicestershire Partnership NHS Trust,03/05/2022,NURSE - BAND 5 - AGENCY,Mill Lodge,HCL NURSING,HNSI0001021,11352.79
Department of Health,Leicestershire Partnership NHS Trust,03/05/2022,NURSE - BAND 2 - AGENCY,Phoenix Ward (HPC),HCL NURSING,HNSI0001021,10393.45
Department of Health,Leicestershire Partnership NHS Trust,03/05/2022,NURSE - BAND 5 - AGENCY,Phoenix Ward (HPC),HCL NURSING,HNSI0001021,6501.2
Department of Health,Leicestershire Partnership NHS Trust,03/05/2022,NURSE - BAND 2 - AGENCY,Place Of Safety Assessment Unit,HCL NURSING,HNSI0001021,801.73
Department of Health,Leicestershire Partnership NHS Trust,03/05/2022,NURSE - BAND 5 - AGENCY,Place Of Safety Assessment Unit,HCL NURSING,HNSI0001021,6336.94
Department of Health,Leicestershire Partnership NHS Trust,03/05/2022,NURSE - BAND 2 - AGENCY,Stewart House,HCL NURSING,HNSI0001021,696.5
Department of Health,Leicestershire Partnership NHS Trust,03/05/2022,NURSE - BAND 5 - AGENCY,Stewart House,HCL NURSING,HNSI0001021,2201.19
Department of Health,Leicestershire Partnership NHS Trust,03/05/2022,NURSE - BAND 2 - AGENCY,Sycamore (Willows),HCL NURSING,HNSI0001021,2522.92
Department of Health,Leicestershire Partnership NHS Trust,03/05/2022,NURSE - BAND 5 - AGENCY,Sycamore (Willows),HCL NURSING,HNSI0001021,8045.14
Department of Health,Leicestershire Partnership NHS Trust,03/05/2022,NURSE - BAND 5 - AGENCY,Thornton Ward - Bradgate Unit,HCL NURSING,HNSI0001021,530.69
Department of Health,Leicestershire Partnership NHS Trust,03/05/2022,NURSE - BAND 2 - AGENCY,Watermead Ward (Bradgate Unit),HCL NURSING,HNSI0001021,8541.09
Department of Health,Leicestershire Partnership NHS Trust,03/05/2022,NURSE - BAND 5 - AGENCY,Watermead Ward (Bradgate Unit),HCL NURSING,HNSI0001021,9921.44
Department of Health,Leicestershire Partnership NHS Trust,03/05/2022,NURSE - BAND 2 - AGENCY,Welford Ward,HCL NURSING,HNSI0001021,8369.87
Department of Health,Leicestershire Partnership NHS Trust,03/05/2022,Computer Software,HIS Infrastructure,ACCENTURE UK LIMITED,3003548958,28970.57
Department of Health,Leicestershire Partnership NHS Trust,03/05/2022,Contract : Accomodation,Crisis House and Cafe,TURNING POINT,SI-TPS-00038933,96937.75
Department of Health,Leicestershire Partnership NHS Trust,03/05/2022,Crs_NHS_LT1y -Resus Inventory Supplied.,Balance Sheet Collection,SUPPLY CHAIN CO LTD,1123017709,45769.58
Department of Health,Leicestershire Partnership NHS Trust,03/05/2022,Healthcare Services / Recharges from Non-NHS Bodies,LLR Health & Wellbeing Hub,MERRIDALE MEDICAL CENTRE,2,29266
Department of Health,Leicestershire Partnership NHS Trust,03/05/2022,Admin & Clerical - Band 4,Chief Executives Office,NORTHAMPTONSHIRE HC NHS FT (RP1),5152149,2301.87
Department of Health,Leicestershire Partnership NHS Trust,03/05/2022,Admin & Clerical - Band 7,Chief Executives Office,NORTHAMPTONSHIRE HC NHS FT (RP1),5152149,706.26
Department of Health,Leicestershire Partnership NHS Trust,03/05/2022,CHIEF EXECUTIVE'S REMUNERATION,Chief Executives Office,NORTHAMPTONSHIRE HC NHS FT (RP1),5152149,10884.64
Department of Health,Leicestershire Partnership NHS Trust,03/05/2022,DIRECTOR,Chief Executives Office,NORTHAMPTONSHIRE HC NHS FT (RP1),5152149,19579.39
Department of Health,Leicestershire Partnership NHS Trust,04/05/2022,Payroll Deductions -Salary Sacrifice Cars Scheme,Balance Sheet Collection,TUSKER,59647,25911.72
Department of Health,Leicestershire Partnership NHS Trust,04/05/2022,NURSE - BAND 2 - AGENCY,Beechwood Ward,HCL NURSING,HNSI0001005,4457.45
Department of Health,Leicestershire Partnership NHS Trust,04/05/2022,NURSE - BAND 5 - AGENCY,Beechwood Ward,HCL NURSING,HNSI0001005,3152.47
Department of Health,Leicestershire Partnership NHS Trust,04/05/2022,NURSE - BAND 3 - AGENCY,CHS Phlebotomy Service,HCL NURSING,HNSI0001005,688.65
Department of Health,Leicestershire Partnership NHS Trust,04/05/2022,NURSE - BAND 5 - AGENCY,City Planned Care - East,HCL NURSING,HNSI0001005,11136.91
Department of Health,Leicestershire Partnership NHS Trust,04/05/2022,NURSE - BAND 5 - AGENCY,City Planned Care - West,HCL NURSING,HNSI0001005,8906.66
Department of Health,Leicestershire Partnership NHS Trust,04/05/2022,NURSE - BAND 2 - AGENCY,Clarendon Ward,HCL NURSING,HNSI0001005,5342.63
Department of Health,Leicestershire Partnership NHS Trust,04/05/2022,NURSE - BAND 5 - AGENCY,Clarendon Ward,HCL NURSING,HNSI0001005,4137.63
Department of Health,Leicestershire Partnership NHS Trust,04/05/2022,NURSE - BAND 2 - AGENCY,Coalville Snibston Ward,HCL NURSING,HNSI0001005,3681.09
Department of Health,Leicestershire Partnership NHS Trust,04/05/2022,NURSE - BAND 5 - AGENCY,Coalville Snibston Ward,HCL NURSING,HNSI0001005,3148.79
Department of Health,Leicestershire Partnership NHS Trust,04/05/2022,NURSE - BAND 5 - AGENCY,Coalville Ward 2,HCL NURSING,HNSI0001005,1050.73
Department of Health,Leicestershire Partnership NHS Trust,04/05/2022,NURSE - BAND 2 - AGENCY,Dalgliesh Ward,HCL NURSING,HNSI0001005,1379.14
Department of Health,Leicestershire Partnership NHS Trust,04/05/2022,NURSE - BAND 5 - AGENCY,Dalgliesh Ward,HCL NURSING,HNSI0001005,2834.64
Department of Health,Leicestershire Partnership NHS Trust,04/05/2022,NURSE - BAND 2 - AGENCY,H&B Comm Hosp East Ward,HCL NURSING,HNSI0001005,5728.42
Department of Health,Leicestershire Partnership NHS Trust,04/05/2022,NURSE - BAND 5 - AGENCY,H&B Comm Hosp East Ward,HCL NURSING,HNSI0001005,4767.04
Department of Health,Leicestershire Partnership NHS Trust,04/05/2022,NURSE - BAND 2 - AGENCY,H&B Comm Hosp North Ward,HCL NURSING,HNSI0001005,7484
Department of Health,Leicestershire Partnership NHS Trust,04/05/2022,NURSE - BAND 5 - AGENCY,H&B Comm Hosp North Ward,HCL NURSING,HNSI0001005,4122.61
Department of Health,Leicestershire Partnership NHS Trust,04/05/2022,NURSE - BAND 2 - AGENCY,Lough Swithland Ward,HCL NURSING,HNSI0001005,2566.67
Department of Health,Leicestershire Partnership NHS Trust,04/05/2022,NURSE - BAND 5 - AGENCY,Lough Swithland Ward,HCL NURSING,HNSI0001005,1097.63
Department of Health,Leicestershire Partnership NHS Trust,04/05/2022,NURSE - BAND 2 - AGENCY,Non Recurrent 2012/13,HCL NURSING,HNSI0001005,395.92
Department of Health,Leicestershire Partnership NHS Trust,04/05/2022,NURSE - BAND 5 - AGENCY,Non Recurrent 2012/13,HCL NURSING,HNSI0001005,10093.23
Department of Health,Leicestershire Partnership NHS Trust,04/05/2022,NURSE - BAND 2 - AGENCY,Rutland Ward Nursing,HCL NURSING,HNSI0001005,3927.61
Department of Health,Leicestershire Partnership NHS Trust,04/05/2022,NURSE - BAND 5 - AGENCY,Rutland Ward Nursing,HCL NURSING,HNSI0001005,2341.97
Department of Health,Leicestershire Partnership NHS Trust,04/05/2022,NURSE - BAND 2 - AGENCY,St Lukes Stroke Ward,HCL NURSING,HNSI0001005,2759.07
Department of Health,Leicestershire Partnership NHS Trust,04/05/2022,NURSE - BAND 5 - AGENCY,St Lukes Stroke Ward,HCL NURSING,HNSI0001005,1803.51
Department of Health,Leicestershire Partnership NHS Trust,04/05/2022,NURSE - BAND 2 - AGENCY,St Lukes Ward 3,HCL NURSING,HNSI0001005,3232.1
Department of Health,Leicestershire Partnership NHS Trust,04/05/2022,NURSE - BAND 5 - AGENCY,St Lukes Ward 3,HCL NURSING,HNSI0001005,389.68
Department of Health,Leicestershire Partnership NHS Trust,04/05/2022,NURSE - BAND 2 - AGENCY,Wakerley Ward,HCL NURSING,HNSI0001005,9698.08
Department of Health,Leicestershire Partnership NHS Trust,04/05/2022,NURSE - BAND 5 - AGENCY,Wakerley Ward,HCL NURSING,HNSI0001005,2813.75
Department of Health,Leicestershire Partnership NHS Trust,04/05/2022,NURSE - BAND 2 - AGENCY,Beechwood Ward,HCL NURSING,HNSI0001022,8003.46
Department of Health,Leicestershire Partnership NHS Trust,04/05/2022,NURSE - BAND 5 - AGENCY,Beechwood Ward,HCL NURSING,HNSI0001022,7420.52
Department of Health,Leicestershire Partnership NHS Trust,04/05/2022,NURSE - BAND 3 - AGENCY,CHS Phlebotomy Service,HCL NURSING,HNSI0001022,1449.88
Department of Health,Leicestershire Partnership NHS Trust,04/05/2022,NURSE - BAND 5 - AGENCY,City Planned Care - East,HCL NURSING,HNSI0001022,11622.73
Department of Health,Leicestershire Partnership NHS Trust,04/05/2022,NURSE - BAND 5 - AGENCY,City Planned Care - West,HCL NURSING,HNSI0001022,15439.71
Department of Health,Leicestershire Partnership NHS Trust,04/05/2022,NURSE - BAND 2 - AGENCY,Clarendon Ward,HCL NURSING,HNSI0001022,4652.26
Department of Health,Leicestershire Partnership NHS Trust,04/05/2022,NURSE - BAND 5 - AGENCY,Clarendon Ward,HCL NURSING,HNSI0001022,10329.77
Department of Health,Leicestershire Partnership NHS Trust,04/05/2022,NURSE - BAND 2 - AGENCY,Coalville Snibston Ward,HCL NURSING,HNSI0001022,5691.35
Department of Health,Leicestershire Partnership NHS Trust,04/05/2022,NURSE - BAND 5 - AGENCY,Coalville Snibston Ward,HCL NURSING,HNSI0001022,2045.22
Department of Health,Leicestershire Partnership NHS Trust,04/05/2022,NURSE - BAND 2 - AGENCY,Coalville Ward 2,HCL NURSING,HNSI0001022,1119.42
Department of Health,Leicestershire Partnership NHS Trust,04/05/2022,NURSE - BAND 5 - AGENCY,Coalville Ward 2,HCL NURSING,HNSI0001022,4749.8
Department of Health,Leicestershire Partnership NHS Trust,04/05/2022,NURSE - BAND 2 - AGENCY,Dalgliesh Ward,HCL NURSING,HNSI0001022,1706.46
Department of Health,Leicestershire Partnership NHS Trust,04/05/2022,NURSE - BAND 5 - AGENCY,"East Planned Care - Oadby,Wigston & Harborough",HCL NURSING,HNSI0001022,51.52
Department of Health,Leicestershire Partnership NHS Trust,04/05/2022,NURSE - BAND 2 - AGENCY,H&B Comm Hosp East Ward,HCL NURSING,HNSI0001022,4393.32
Department of Health,Leicestershire Partnership NHS Trust,04/05/2022,NURSE - BAND 5 - AGENCY,H&B Comm Hosp East Ward,HCL NURSING,HNSI0001022,9175.56
Department of Health,Leicestershire Partnership NHS Trust,04/05/2022,NURSE - BAND 2 - AGENCY,H&B Comm Hosp North Ward,HCL NURSING,HNSI0001022,9560.86
Department of Health,Leicestershire Partnership NHS Trust,04/05/2022,NURSE - BAND 5 - AGENCY,H&B Comm Hosp North Ward,HCL NURSING,HNSI0001022,4084.5
Department of Health,Leicestershire Partnership NHS Trust,04/05/2022,NURSE - BAND 2 - AGENCY,Lough Swithland Ward,HCL NURSING,HNSI0001022,1197.56
Department of Health,Leicestershire Partnership NHS Trust,04/05/2022,NURSE - BAND 5 - AGENCY,Lough Swithland Ward,HCL NURSING,HNSI0001022,1108.28
Department of Health,Leicestershire Partnership NHS Trust,04/05/2022,NURSE - BAND 3 - AGENCY,Non Recurrent 2012/13,HCL NURSING,HNSI0001022,100.79
Department of Health,Leicestershire Partnership NHS Trust,04/05/2022,NURSE - BAND 5 - AGENCY,Non Recurrent 2012/13,HCL NURSING,HNSI0001022,597.57
Department of Health,Leicestershire Partnership NHS Trust,04/05/2022,NURSE - BAND 2 - AGENCY,Rutland Ward Nursing,HCL NURSING,HNSI0001022,4183.97
Department of Health,Leicestershire Partnership NHS Trust,04/05/2022,NURSE - BAND 5 - AGENCY,Rutland Ward Nursing,HCL NURSING,HNSI0001022,657.16
Department of Health,Leicestershire Partnership NHS Trust,04/05/2022,NURSE - BAND 2 - AGENCY,St Lukes Stroke Ward,HCL NURSING,HNSI0001022,3332.92
Department of Health,Leicestershire Partnership NHS Trust,04/05/2022,NURSE - BAND 5 - AGENCY,St Lukes Stroke Ward,HCL NURSING,HNSI0001022,2140.57
Department of Health,Leicestershire Partnership NHS Trust,04/05/2022,NURSE - BAND 2 - AGENCY,St Lukes Ward 3,HCL NURSING,HNSI0001022,2294.08
Department of Health,Leicestershire Partnership NHS Trust,04/05/2022,NURSE - BAND 5 - AGENCY,St Lukes Ward 3,HCL NURSING,HNSI0001022,1800.84
Department of Health,Leicestershire Partnership NHS Trust,04/05/2022,NURSE - BAND 2 - AGENCY,Wakerley Ward,HCL NURSING,HNSI0001022,15041.5
Department of Health,Leicestershire Partnership NHS Trust,04/05/2022,NURSE - BAND 5 - AGENCY,Wakerley Ward,HCL NURSING,HNSI0001022,2732.67
Department of Health,Leicestershire Partnership NHS Trust,05/05/2022,Rent,"St Peters Health Center (Part 1st and 2nd floors) (P66, LPT)",LEICESTER LIFT CO,LEP1-SI0989,30082.84
Department of Health,Leicestershire Partnership NHS Trust,05/05/2022,External Consultancy Fees,360 Assurance - Internal Audit,IDEAGEN GAEL LTD,SIEK15381,30408
Department of Health,Leicestershire Partnership NHS Trust,05/05/2022,WIP Project Not in BS - Buildings excl Dwellings,Work in Progress,TILBURY DOUGLAS CONSTRUCTION LTD,22040296,35398.57
Department of Health,Leicestershire Partnership NHS Trust,06/05/2022,External Data Processing / Storage,Records & information Governance,H COATES LTD/TA C&V DATA,4009105,32708.57
Department of Health,Leicestershire Partnership NHS Trust,09/05/2022,Nurse - Band 6 -Agency,AMH - Central Access Point,HCL NURSING,HNSI0001025,3081.38
Department of Health,Leicestershire Partnership NHS Trust,09/05/2022,Nurse - Band 6 -Agency,Adult City East CMHT - Merlyn Vaz,HCL NURSING,HNSI0001025,2779.11
Department of Health,Leicestershire Partnership NHS Trust,09/05/2022,NURSE - BAND 2 - AGENCY,Agnes Unit,HCL NURSING,HNSI0001025,18758.44
Department of Health,Leicestershire Partnership NHS Trust,09/05/2022,NURSE - BAND 5 - AGENCY,Agnes Unit,HCL NURSING,HNSI0001025,14863.01
Department of Health,Leicestershire Partnership NHS Trust,09/05/2022,NURSE - BAND 5 - AGENCY,Ashby Ward (Bradgate Unit),HCL NURSING,HNSI0001025,1040.08
Department of Health,Leicestershire Partnership NHS Trust,09/05/2022,NURSE - BAND 2 - AGENCY,Aston Ward (Bradgate Unit),HCL NURSING,HNSI0001025,8549.58
Department of Health,Leicestershire Partnership NHS Trust,09/05/2022,NURSE - BAND 5 - AGENCY,Aston Ward (Bradgate Unit),HCL NURSING,HNSI0001025,10182.11
Department of Health,Leicestershire Partnership NHS Trust,09/05/2022,NURSE - BAND 2 - AGENCY,Beaumont Ward - Bradgate Unit,HCL NURSING,HNSI0001025,5454.56
Department of Health,Leicestershire Partnership NHS Trust,09/05/2022,NURSE - BAND 5 - AGENCY,Beaumont Ward - Bradgate Unit,HCL NURSING,HNSI0001025,14054.48
Department of Health,Leicestershire Partnership NHS Trust,09/05/2022,NURSE - BAND 2 - AGENCY,Belvoir Psychiatric Intensive Care Unit,HCL NURSING,HNSI0001025,3522.82
Department of Health,Leicestershire Partnership NHS Trust,09/05/2022,NURSE - BAND 5 - AGENCY,Belvoir Psychiatric Intensive Care Unit,HCL NURSING,HNSI0001025,5269.34
Department of Health,Leicestershire Partnership NHS Trust,09/05/2022,NURSE - BAND 2 - AGENCY,Bosworth Ward - Bradgate Unit,HCL NURSING,HNSI0001025,5619.63
Department of Health,Leicestershire Partnership NHS Trust,09/05/2022,NURSE - BAND 5 - AGENCY,Bosworth Ward - Bradgate Unit,HCL NURSING,HNSI0001025,3222.19
Department of Health,Leicestershire Partnership NHS Trust,09/05/2022,NURSE - BAND 2 - AGENCY,Cedar (Willows),HCL NURSING,HNSI0001025,2910.3
Department of Health,Leicestershire Partnership NHS Trust,09/05/2022,NURSE - BAND 5 - AGENCY,Cedar (Willows),HCL NURSING,HNSI0001025,1126.75
Department of Health,Leicestershire Partnership NHS Trust,09/05/2022,NURSE - BAND 2 - AGENCY,Coleman Ward,HCL NURSING,HNSI0001025,10387.35
Department of Health,Leicestershire Partnership NHS Trust,09/05/2022,NURSE - BAND 5 - AGENCY,Coleman Ward,HCL NURSING,HNSI0001025,2837.09
Department of Health,Leicestershire Partnership NHS Trust,09/05/2022,NURSE - BAND 5 - AGENCY,Crisis Resolution,HCL NURSING,HNSI0001025,3481.69
Department of Health,Leicestershire Partnership NHS Trust,09/05/2022,NURSE - BAND 2 - AGENCY,Griffin Ward (HPC),HCL NURSING,HNSI0001025,8654.97
Department of Health,Leicestershire Partnership NHS Trust,09/05/2022,NURSE - BAND 5 - AGENCY,Griffin Ward (HPC),HCL NURSING,HNSI0001025,1717.66
Department of Health,Leicestershire Partnership NHS Trust,09/05/2022,NURSE - BAND 2 - AGENCY,Heather Ward,HCL NURSING,HNSI0001025,2046.78
Department of Health,Leicestershire Partnership NHS Trust,09/05/2022,NURSE - BAND 5 - AGENCY,Heather Ward,HCL NURSING,HNSI0001025,3975.29
Department of Health,Leicestershire Partnership NHS Trust,09/05/2022,NURSE - BAND 2 - AGENCY,Kirby Ward,HCL NURSING,HNSI0001025,4925.85
Department of Health,Leicestershire Partnership NHS Trust,09/05/2022,NURSE - BAND 5 - AGENCY,Kirby Ward,HCL NURSING,HNSI0001025,1433.87
Department of Health,Leicestershire Partnership NHS Trust,09/05/2022,NURSE - BAND 2 - AGENCY,Maple Ward,HCL NURSING,HNSI0001025,4091.87
Department of Health,Leicestershire Partnership NHS Trust,09/05/2022,NURSE - BAND 5 - AGENCY,Maple Ward,HCL NURSING,HNSI0001025,4083.72
Department of Health,Leicestershire Partnership NHS Trust,09/05/2022,Nurse - Band 6 -Agency,Mental Health Liaison Team,HCL NURSING,HNSI0001025,1790.1
Department of Health,Leicestershire Partnership NHS Trust,09/05/2022,NURSE - BAND 2 - AGENCY,Mill Lodge,HCL NURSING,HNSI0001025,4042.86
Department of Health,Leicestershire Partnership NHS Trust,09/05/2022,NURSE - BAND 5 - AGENCY,Mill Lodge,HCL NURSING,HNSI0001025,10389.03
Department of Health,Leicestershire Partnership NHS Trust,09/05/2022,NURSE - BAND 2 - AGENCY,Phoenix Ward (HPC),HCL NURSING,HNSI0001025,8389.19
Department of Health,Leicestershire Partnership NHS Trust,09/05/2022,NURSE - BAND 5 - AGENCY,Phoenix Ward (HPC),HCL NURSING,HNSI0001025,2118.53
Department of Health,Leicestershire Partnership NHS Trust,09/05/2022,NURSE - BAND 5 - AGENCY,Place Of Safety Assessment Unit,HCL NURSING,HNSI0001025,4480.71
Department of Health,Leicestershire Partnership NHS Trust,09/05/2022,NURSE - BAND 2 - AGENCY,Stewart House,HCL NURSING,HNSI0001025,342.54
Department of Health,Leicestershire Partnership NHS Trust,09/05/2022,NURSE - BAND 5 - AGENCY,Stewart House,HCL NURSING,HNSI0001025,3560.17
Department of Health,Leicestershire Partnership NHS Trust,09/05/2022,NURSE - BAND 2 - AGENCY,Sycamore (Willows),HCL NURSING,HNSI0001025,2741.34
Department of Health,Leicestershire Partnership NHS Trust,09/05/2022,NURSE - BAND 5 - AGENCY,Sycamore (Willows),HCL NURSING,HNSI0001025,7380.57
Department of Health,Leicestershire Partnership NHS Trust,09/05/2022,NURSE - BAND 2 - AGENCY,Thornton Ward - Bradgate Unit,HCL NURSING,HNSI0001025,574.94
Department of Health,Leicestershire Partnership NHS Trust,09/05/2022,NURSE - BAND 5 - AGENCY,Thornton Ward - Bradgate Unit,HCL NURSING,HNSI0001025,1631
Department of Health,Leicestershire Partnership NHS Trust,09/05/2022,NURSE - BAND 2 - AGENCY,Watermead Ward (Bradgate Unit),HCL NURSING,HNSI0001025,1466.3
Department of Health,Leicestershire Partnership NHS Trust,09/05/2022,NURSE - BAND 5 - AGENCY,Watermead Ward (Bradgate Unit),HCL NURSING,HNSI0001025,9717.06
Department of Health,Leicestershire Partnership NHS Trust,09/05/2022,NURSE - BAND 2 - AGENCY,Welford Ward,HCL NURSING,HNSI0001025,6963.67
Department of Health,Leicestershire Partnership NHS Trust,09/05/2022,NURSE - BAND 5 - AGENCY,Welford Ward,HCL NURSING,HNSI0001025,3023.09
Department of Health,Leicestershire Partnership NHS Trust,09/05/2022,Nurse - Band 6 -Agency,CAMHS HUB / CAP,HCL SOCIAL CARE,HWSI0001155,5122.37
Department of Health,Leicestershire Partnership NHS Trust,09/05/2022,Nurse - Band 6 -Agency,CAMHS Waiting List Monies,HCL SOCIAL CARE,HWSI0001155,22907.35
Department of Health,Leicestershire Partnership NHS Trust,09/05/2022,Nurse - Band 6 -Agency,Crisis Response and Home Treatment,HCL SOCIAL CARE,HWSI0001155,1353.32
Department of Health,Leicestershire Partnership NHS Trust,09/05/2022,NURSE - BAND 2 - AGENCY,CAMHS ED Team,HCL NURSING,HNSI0001027,2457.55
Department of Health,Leicestershire Partnership NHS Trust,09/05/2022,NURSE - BAND 2 - AGENCY,CAMHS Inpatient Service,HCL NURSING,HNSI0001027,16416.09
Department of Health,Leicestershire Partnership NHS Trust,09/05/2022,NURSE - BAND 5 - AGENCY,CAMHS Inpatient Service,HCL NURSING,HNSI0001027,9325.17
Department of Health,Leicestershire Partnership NHS Trust,09/05/2022,Nurse - Band 6 -Agency,CAMHS Waiting List Monies,HCL NURSING,HNSI0001027,4742.32
Department of Health,Leicestershire Partnership NHS Trust,09/05/2022,NURSE - BAND 2 - AGENCY,Langley Ward ED Inpatient Service,HCL NURSING,HNSI0001027,2607.35
Department of Health,Leicestershire Partnership NHS Trust,09/05/2022,NURSE - BAND 5 - AGENCY,Langley Ward ED Inpatient Service,HCL NURSING,HNSI0001027,2690.11
Department of Health,Leicestershire Partnership NHS Trust,09/05/2022,WIP Project Not in BS - Buildings excl Dwellings,Work in Progress,TILBURY DOUGLAS CONSTRUCTION LTD,22050054,35075.29
Department of Health,Leicestershire Partnership NHS Trust,10/05/2022,NURSE - BAND 2 - AGENCY,Beechwood Ward,HCL NURSING,HNSI0001026,4914.4
Department of Health,Leicestershire Partnership NHS Trust,10/05/2022,NURSE - BAND 5 - AGENCY,Beechwood Ward,HCL NURSING,HNSI0001026,5287.73
Department of Health,Leicestershire Partnership NHS Trust,10/05/2022,NURSE - BAND 3 - AGENCY,CHS Phlebotomy Service,HCL NURSING,HNSI0001026,29.12
Department of Health,Leicestershire Partnership NHS Trust,10/05/2022,NURSE - BAND 5 - AGENCY,City Planned Care - East,HCL NURSING,HNSI0001026,15605.78
Department of Health,Leicestershire Partnership NHS Trust,10/05/2022,NURSE - BAND 5 - AGENCY,City Planned Care - West,HCL NURSING,HNSI0001026,7612.32
Department of Health,Leicestershire Partnership NHS Trust,10/05/2022,NURSE - BAND 2 - AGENCY,Clarendon Ward,HCL NURSING,HNSI0001026,6750.67
Department of Health,Leicestershire Partnership NHS Trust,10/05/2022,NURSE - BAND 5 - AGENCY,Clarendon Ward,HCL NURSING,HNSI0001026,10485.03
Department of Health,Leicestershire Partnership NHS Trust,10/05/2022,NURSE - BAND 2 - AGENCY,Coalville Snibston Ward,HCL NURSING,HNSI0001026,2109.53
Department of Health,Leicestershire Partnership NHS Trust,10/05/2022,NURSE - BAND 5 - AGENCY,Coalville Snibston Ward,HCL NURSING,HNSI0001026,3807.42
Department of Health,Leicestershire Partnership NHS Trust,10/05/2022,NURSE - BAND 2 - AGENCY,Coalville Ward 2,HCL NURSING,HNSI0001026,1320.77
Department of Health,Leicestershire Partnership NHS Trust,10/05/2022,NURSE - BAND 5 - AGENCY,Coalville Ward 2,HCL NURSING,HNSI0001026,3976.01
Department of Health,Leicestershire Partnership NHS Trust,10/05/2022,NURSE - BAND 2 - AGENCY,Dalgliesh Ward,HCL NURSING,HNSI0001026,1132.67
Department of Health,Leicestershire Partnership NHS Trust,10/05/2022,NURSE - BAND 5 - AGENCY,Dalgliesh Ward,HCL NURSING,HNSI0001026,1984.69
Department of Health,Leicestershire Partnership NHS Trust,10/05/2022,NURSE - BAND 5 - AGENCY,"East Planned Care - Oadby,Wigston & Harborough",HCL NURSING,HNSI0001026,2298.06
Department of Health,Leicestershire Partnership NHS Trust,10/05/2022,NURSE - BAND 2 - AGENCY,H&B Comm Hosp East Ward,HCL NURSING,HNSI0001026,4973.09
Department of Health,Leicestershire Partnership NHS Trust,10/05/2022,NURSE - BAND 5 - AGENCY,H&B Comm Hosp East Ward,HCL NURSING,HNSI0001026,10331.88
Department of Health,Leicestershire Partnership NHS Trust,10/05/2022,NURSE - BAND 2 - AGENCY,H&B Comm Hosp North Ward,HCL NURSING,HNSI0001026,7208.62
Department of Health,Leicestershire Partnership NHS Trust,10/05/2022,NURSE - BAND 5 - AGENCY,H&B Comm Hosp North Ward,HCL NURSING,HNSI0001026,7446.92
Department of Health,Leicestershire Partnership NHS Trust,10/05/2022,NURSE - BAND 2 - AGENCY,Lough Swithland Ward,HCL NURSING,HNSI0001026,1170.02
Department of Health,Leicestershire Partnership NHS Trust,10/05/2022,NURSE - BAND 5 - AGENCY,Lough Swithland Ward,HCL NURSING,HNSI0001026,1187.85
Department of Health,Leicestershire Partnership NHS Trust,10/05/2022,NURSE - BAND 5 - AGENCY,Non Recurrent 2012/13,HCL NURSING,HNSI0001026,162.34
Department of Health,Leicestershire Partnership NHS Trust,10/05/2022,NURSE - BAND 2 - AGENCY,Rutland Ward Nursing,HCL NURSING,HNSI0001026,3160.39
Department of Health,Leicestershire Partnership NHS Trust,10/05/2022,NURSE - BAND 5 - AGENCY,Rutland Ward Nursing,HCL NURSING,HNSI0001026,520.04
Department of Health,Leicestershire Partnership NHS Trust,10/05/2022,NURSE - BAND 2 - AGENCY,St Lukes Stroke Ward,HCL NURSING,HNSI0001026,5875.26
Department of Health,Leicestershire Partnership NHS Trust,10/05/2022,NURSE - BAND 5 - AGENCY,St Lukes Stroke Ward,HCL NURSING,HNSI0001026,6049.77
Department of Health,Leicestershire Partnership NHS Trust,10/05/2022,NURSE - BAND 2 - AGENCY,St Lukes Ward 3,HCL NURSING,HNSI0001026,2703.74
Department of Health,Leicestershire Partnership NHS Trust,10/05/2022,NURSE - BAND 5 - AGENCY,St Lukes Ward 3,HCL NURSING,HNSI0001026,1674.37
Department of Health,Leicestershire Partnership NHS Trust,10/05/2022,NURSE - BAND 2 - AGENCY,Wakerley Ward,HCL NURSING,HNSI0001026,7702.15
Department of Health,Leicestershire Partnership NHS Trust,10/05/2022,NURSE - BAND 5 - AGENCY,Wakerley Ward,HCL NURSING,HNSI0001026,5233.57
Department of Health,Leicestershire Partnership NHS Trust,10/05/2022,Legal Fees,Chief Executives Office,CARE QUALITY COMM,43125065,215243
Department of Health,Leicestershire Partnership NHS Trust,11/05/2022,Network Costs - WAN Maint,HIS Infrastructure,VIRGIN MEDIA BUSINESS,262421-193,36659.05
Department of Health,Leicestershire Partnership NHS Trust,11/05/2022,Insurance Costs,Chief Executives Office,NHS LITIGATION AUTHORITY,SICX408345,192613.1
Department of Health,Leicestershire Partnership NHS Trust,12/05/2022,Network Costs - WAN Maint,HIS Infrastructure,VIRGIN MEDIA BUSINESS,919266-141,234397.74
Department of Health,Leicestershire Partnership NHS Trust,13/05/2022,Network Costs - WAN Maint,HIS Infrastructure,VIRGIN MEDIA BUSINESS,262421-194,35934.66
Department of Health,Leicestershire Partnership NHS Trust,13/05/2022,Nurse - Band 6 -Agency,AMH - Central Access Point,HCL NURSING,HNSI0001029,2350.61
Department of Health,Leicestershire Partnership NHS Trust,13/05/2022,Nurse - Band 6 -Agency,Adult City East CMHT - Merlyn Vaz,HCL NURSING,HNSI0001029,863.95
Department of Health,Leicestershire Partnership NHS Trust,13/05/2022,Nurse - Band 6 -Agency,Adult County West Leicestershire CMHT,HCL NURSING,HNSI0001029,1079.94
Department of Health,Leicestershire Partnership NHS Trust,13/05/2022,NURSE - BAND 2 - AGENCY,Agnes Unit,HCL NURSING,HNSI0001029,24887.59
Department of Health,Leicestershire Partnership NHS Trust,13/05/2022,NURSE - BAND 5 - AGENCY,Agnes Unit,HCL NURSING,HNSI0001029,13647.29
Department of Health,Leicestershire Partnership NHS Trust,13/05/2022,NURSE - BAND 2 - AGENCY,Ashby Ward (Bradgate Unit),HCL NURSING,HNSI0001029,347.15
Department of Health,Leicestershire Partnership NHS Trust,13/05/2022,NURSE - BAND 5 - AGENCY,Ashby Ward (Bradgate Unit),HCL NURSING,HNSI0001029,2137.72
Department of Health,Leicestershire Partnership NHS Trust,13/05/2022,NURSE - BAND 2 - AGENCY,Aston Ward (Bradgate Unit),HCL NURSING,HNSI0001029,4977.94
Department of Health,Leicestershire Partnership NHS Trust,13/05/2022,NURSE - BAND 5 - AGENCY,Aston Ward (Bradgate Unit),HCL NURSING,HNSI0001029,10527.26
Department of Health,Leicestershire Partnership NHS Trust,13/05/2022,NURSE - BAND 2 - AGENCY,Beaumont Ward - Bradgate Unit,HCL NURSING,HNSI0001029,3557.97
Department of Health,Leicestershire Partnership NHS Trust,13/05/2022,NURSE - BAND 5 - AGENCY,Beaumont Ward - Bradgate Unit,HCL NURSING,HNSI0001029,16281.78
Department of Health,Leicestershire Partnership NHS Trust,13/05/2022,NURSE - BAND 2 - AGENCY,Belvoir Psychiatric Intensive Care Unit,HCL NURSING,HNSI0001029,5612.36
Department of Health,Leicestershire Partnership NHS Trust,13/05/2022,NURSE - BAND 5 - AGENCY,Belvoir Psychiatric Intensive Care Unit,HCL NURSING,HNSI0001029,2461.18
Department of Health,Leicestershire Partnership NHS Trust,13/05/2022,NURSE - BAND 2 - AGENCY,Bosworth Ward - Bradgate Unit,HCL NURSING,HNSI0001029,1698.28
Department of Health,Leicestershire Partnership NHS Trust,13/05/2022,NURSE - BAND 5 - AGENCY,Bosworth Ward - Bradgate Unit,HCL NURSING,HNSI0001029,2303.41
Department of Health,Leicestershire Partnership NHS Trust,13/05/2022,NURSE - BAND 2 - AGENCY,Cedar (Willows),HCL NURSING,HNSI0001029,2097.33
Department of Health,Leicestershire Partnership NHS Trust,13/05/2022,NURSE - BAND 5 - AGENCY,Cedar (Willows),HCL NURSING,HNSI0001029,1427.64
Department of Health,Leicestershire Partnership NHS Trust,13/05/2022,NURSE - BAND 2 - AGENCY,Coleman Ward,HCL NURSING,HNSI0001029,12085.07
Department of Health,Leicestershire Partnership NHS Trust,13/05/2022,NURSE - BAND 5 - AGENCY,Coleman Ward,HCL NURSING,HNSI0001029,4599.15
Department of Health,Leicestershire Partnership NHS Trust,13/05/2022,NURSE - BAND 5 - AGENCY,Crisis Resolution,HCL NURSING,HNSI0001029,3224.15
Department of Health,Leicestershire Partnership NHS Trust,13/05/2022,NURSE - BAND 2 - AGENCY,Griffin Ward (HPC),HCL NURSING,HNSI0001029,13396.74
Department of Health,Leicestershire Partnership NHS Trust,13/05/2022,NURSE - BAND 5 - AGENCY,Griffin Ward (HPC),HCL NURSING,HNSI0001029,2932.17
Department of Health,Leicestershire Partnership NHS Trust,13/05/2022,NURSE - BAND 2 - AGENCY,Heather Ward,HCL NURSING,HNSI0001029,479.47
Department of Health,Leicestershire Partnership NHS Trust,13/05/2022,NURSE - BAND 5 - AGENCY,Heather Ward,HCL NURSING,HNSI0001029,2604.84
Department of Health,Leicestershire Partnership NHS Trust,13/05/2022,NURSE - BAND 2 - AGENCY,Kirby Ward,HCL NURSING,HNSI0001029,4432.15
Department of Health,Leicestershire Partnership NHS Trust,13/05/2022,NURSE - BAND 5 - AGENCY,Kirby Ward,HCL NURSING,HNSI0001029,1694.98
Department of Health,Leicestershire Partnership NHS Trust,13/05/2022,NURSE - BAND 2 - AGENCY,Maple Ward,HCL NURSING,HNSI0001029,1295.03
Department of Health,Leicestershire Partnership NHS Trust,13/05/2022,NURSE - BAND 5 - AGENCY,Maple Ward,HCL NURSING,HNSI0001029,3636.23
Department of Health,Leicestershire Partnership NHS Trust,13/05/2022,Nurse - Band 6 -Agency,Mental Health Liaison Team,HCL NURSING,HNSI0001029,2302.03
Department of Health,Leicestershire Partnership NHS Trust,13/05/2022,NURSE - BAND 2 - AGENCY,Mill Lodge,HCL NURSING,HNSI0001029,2684.94
Department of Health,Leicestershire Partnership NHS Trust,13/05/2022,NURSE - BAND 5 - AGENCY,Mill Lodge,HCL NURSING,HNSI0001029,9292.84
Department of Health,Leicestershire Partnership NHS Trust,13/05/2022,NURSE - BAND 2 - AGENCY,Phoenix Ward (HPC),HCL NURSING,HNSI0001029,8325.46
Department of Health,Leicestershire Partnership NHS Trust,13/05/2022,NURSE - BAND 5 - AGENCY,Phoenix Ward (HPC),HCL NURSING,HNSI0001029,1476.59
Department of Health,Leicestershire Partnership NHS Trust,13/05/2022,NURSE - BAND 2 - AGENCY,Place Of Safety Assessment Unit,HCL NURSING,HNSI0001029,1559.57
Department of Health,Leicestershire Partnership NHS Trust,13/05/2022,NURSE - BAND 5 - AGENCY,Place Of Safety Assessment Unit,HCL NURSING,HNSI0001029,4665.1
Department of Health,Leicestershire Partnership NHS Trust,13/05/2022,NURSE - BAND 2 - AGENCY,Stewart House,HCL NURSING,HNSI0001029,4085.55
Department of Health,Leicestershire Partnership NHS Trust,13/05/2022,NURSE - BAND 5 - AGENCY,Stewart House,HCL NURSING,HNSI0001029,9318.84
Department of Health,Leicestershire Partnership NHS Trust,13/05/2022,NURSE - BAND 2 - AGENCY,Sycamore (Willows),HCL NURSING,HNSI0001029,2509.68
Department of Health,Leicestershire Partnership NHS Trust,13/05/2022,NURSE - BAND 5 - AGENCY,Sycamore (Willows),HCL NURSING,HNSI0001029,6008.37
Department of Health,Leicestershire Partnership NHS Trust,13/05/2022,NURSE - BAND 2 - AGENCY,Thornton Ward - Bradgate Unit,HCL NURSING,HNSI0001029,1772.84
Department of Health,Leicestershire Partnership NHS Trust,13/05/2022,NURSE - BAND 5 - AGENCY,Thornton Ward - Bradgate Unit,HCL NURSING,HNSI0001029,984.49
Department of Health,Leicestershire Partnership NHS Trust,13/05/2022,NURSE - BAND 2 - AGENCY,Watermead Ward (Bradgate Unit),HCL NURSING,HNSI0001029,1370.99
Department of Health,Leicestershire Partnership NHS Trust,13/05/2022,NURSE - BAND 5 - AGENCY,Watermead Ward (Bradgate Unit),HCL NURSING,HNSI0001029,10517.98
Department of Health,Leicestershire Partnership NHS Trust,13/05/2022,NURSE - BAND 2 - AGENCY,Welford Ward,HCL NURSING,HNSI0001029,7188.43
Department of Health,Leicestershire Partnership NHS Trust,13/05/2022,NURSE - BAND 5 - AGENCY,Welford Ward,HCL NURSING,HNSI0001029,3994.2
Department of Health,Leicestershire Partnership NHS Trust,13/05/2022,Nurse - Band 6 -Agency,CAMHS HUB / CAP,HCL SOCIAL CARE,HWSI0001164,11490.81
Department of Health,Leicestershire Partnership NHS Trust,13/05/2022,Nurse - Band 6 -Agency,CAMHS Waiting List Monies,HCL SOCIAL CARE,HWSI0001164,20654.76
Department of Health,Leicestershire Partnership NHS Trust,13/05/2022,Nurse - Band 6 -Agency,Crisis Response and Home Treatment,HCL SOCIAL CARE,HWSI0001164,2045.14
Department of Health,Leicestershire Partnership NHS Trust,13/05/2022,NURSE - BAND 2 - AGENCY,CAMHS ED Team,HCL NURSING,HNSI0001031,1923.07
Department of Health,Leicestershire Partnership NHS Trust,13/05/2022,NURSE - BAND 2 - AGENCY,CAMHS Inpatient Service,HCL NURSING,HNSI0001031,17799.39
Department of Health,Leicestershire Partnership NHS Trust,13/05/2022,NURSE - BAND 5 - AGENCY,CAMHS Inpatient Service,HCL NURSING,HNSI0001031,9406.62
Department of Health,Leicestershire Partnership NHS Trust,13/05/2022,NURSE - BAND 5 - AGENCY,CAMHS Waiting List Monies,HCL NURSING,HNSI0001031,2525.39
Department of Health,Leicestershire Partnership NHS Trust,13/05/2022,Nurse - Band 6 -Agency,CAMHS Waiting List Monies,HCL NURSING,HNSI0001031,2348.29
Department of Health,Leicestershire Partnership NHS Trust,13/05/2022,NURSE - BAND 2 - AGENCY,Langley Ward ED Inpatient Service,HCL NURSING,HNSI0001031,1985.11
Department of Health,Leicestershire Partnership NHS Trust,13/05/2022,NURSE - BAND 5 - AGENCY,Langley Ward ED Inpatient Service,HCL NURSING,HNSI0001031,3415.51
Department of Health,Leicestershire Partnership NHS Trust,16/05/2022,Crs_NHS_LT1y -Resus Inventory Supplied.,Balance Sheet Collection,SUPPLY CHAIN CO LTD,1123027836,32849.73
Department of Health,Leicestershire Partnership NHS Trust,16/05/2022,Computer Software,HIS Infrastructure,ACCENTURE UK LIMITED,3003548955,48284.28
Department of Health,Leicestershire Partnership NHS Trust,16/05/2022,Photocopying,Estates & Facilities Central,LEXMARK INTERNATIONAL LTD,9.0065E+11,33585.76
Department of Health,Leicestershire Partnership NHS Trust,17/05/2022,Landline Telephone Rental / Calls,"Beaumont Leys Health Centre (P94, LPT)",VIRGIN MEDIA BUSINESS,853083001/004/0522,347.46
Department of Health,Leicestershire Partnership NHS Trust,17/05/2022,Landline Telephone Rental / Calls,"Bennion Centre (including Forest Grange Day Unit) (P8, LPT)",VIRGIN MEDIA BUSINESS,853083001/004/0522,7.74
Department of Health,Leicestershire Partnership NHS Trust,17/05/2022,Landline Telephone Rental / Calls,"Bradgate Unit (including Glenvale day Unit) (P7, LPT)",VIRGIN MEDIA BUSINESS,853083001/004/0522,8275.58
Department of Health,Leicestershire Partnership NHS Trust,17/05/2022,Landline Telephone Rental / Calls,Braunstone Health and Social Care Centre (Part) (PROPCO),VIRGIN MEDIA BUSINESS,853083001/004/0522,1162.68
Department of Health,Leicestershire Partnership NHS Trust,17/05/2022,Landline Telephone Rental / Calls,Bridge Park Plaza - First Floor (LPT),VIRGIN MEDIA BUSINESS,853083001/004/0522,3752.83
Department of Health,Leicestershire Partnership NHS Trust,17/05/2022,Landline Telephone Rental / Calls,"Coalville Community Hospital (P138, LPT)",VIRGIN MEDIA BUSINESS,853083001/004/0522,1288.52
Department of Health,Leicestershire Partnership NHS Trust,17/05/2022,Landline Telephone Rental / Calls,"Coalville Health Centre (P121, LPT)",VIRGIN MEDIA BUSINESS,853083001/004/0522,151.9
Department of Health,Leicestershire Partnership NHS Trust,17/05/2022,Landline Telephone Rental / Calls,County Hall,VIRGIN MEDIA BUSINESS,853083001/004/0522,2110.01
Department of Health,Leicestershire Partnership NHS Trust,17/05/2022,Landline Telephone Rental / Calls,Estates & Facilities Central,VIRGIN MEDIA BUSINESS,853083001/004/0522,7.58
Department of Health,Leicestershire Partnership NHS Trust,17/05/2022,Landline Telephone Rental / Calls,"Evington Centre (P6, LPT)",VIRGIN MEDIA BUSINESS,853083001/004/0522,1644.05
Department of Health,Leicestershire Partnership NHS Trust,17/05/2022,Landline Telephone Rental / Calls,HIS,VIRGIN MEDIA BUSINESS,853083001/004/0522,2924.17
Department of Health,Leicestershire Partnership NHS Trust,17/05/2022,Landline Telephone Rental / Calls,"Hawthorne Centre - Coalville (P14, LPT)",VIRGIN MEDIA BUSINESS,853083001/004/0522,489.2
Department of Health,Leicestershire Partnership NHS Trust,17/05/2022,Landline Telephone Rental / Calls,"Hinckley and Bosworth Community Hospital (Sunnyside) (P133, LPT)",VIRGIN MEDIA BUSINESS,853083001/004/0522,949.26
Department of Health,Leicestershire Partnership NHS Trust,17/05/2022,Landline Telephone Rental / Calls,Hood Park Leisure Centre Clinic,VIRGIN MEDIA BUSINESS,853083001/004/0522,23.22
Department of Health,Leicestershire Partnership NHS Trust,17/05/2022,Landline Telephone Rental / Calls,"Hynca Lodge (P33, LPT)",VIRGIN MEDIA BUSINESS,853083001/004/0522,367.04
Department of Health,Leicestershire Partnership NHS Trust,17/05/2022,Landline Telephone Rental / Calls,"Legion House, Ashby",VIRGIN MEDIA BUSINESS,853083001/004/0522,44.82
Department of Health,Leicestershire Partnership NHS Trust,17/05/2022,Landline Telephone Rental / Calls,"Loughborough Hospital (P136, LPT)",VIRGIN MEDIA BUSINESS,853083001/004/0522,4364.89
Department of Health,Leicestershire Partnership NHS Trust,17/05/2022,Landline Telephone Rental / Calls,Mawson House (LPT),VIRGIN MEDIA BUSINESS,853083001/004/0522,437.1
Department of Health,Leicestershire Partnership NHS Trust,17/05/2022,Landline Telephone Rental / Calls,Merlyn Vaz Centre (CHP),VIRGIN MEDIA BUSINESS,853083001/004/0522,1289.34
Department of Health,Leicestershire Partnership NHS Trust,17/05/2022,Landline Telephone Rental / Calls,"Mett Centre (P49, LPT)",VIRGIN MEDIA BUSINESS,853083001/004/0522,82.42
Department of Health,Leicestershire Partnership NHS Trust,17/05/2022,Landline Telephone Rental / Calls,NSPCC Training Cente,VIRGIN MEDIA BUSINESS,853083001/004/0522,159.96
Department of Health,Leicestershire Partnership NHS Trust,17/05/2022,Landline Telephone Rental / Calls,New Parks Health Centre (PROPCO),VIRGIN MEDIA BUSINESS,853083001/004/0522,1504.52
Department of Health,Leicestershire Partnership NHS Trust,17/05/2022,Landline Telephone Rental / Calls,"OSL House (P54, LPT)",VIRGIN MEDIA BUSINESS,853083001/004/0522,948.48
Department of Health,Leicestershire Partnership NHS Trust,17/05/2022,Landline Telephone Rental / Calls,"Orchard Resource Centre (P15, LPT)",VIRGIN MEDIA BUSINESS,853083001/004/0522,590.74
Department of Health,Leicestershire Partnership NHS Trust,17/05/2022,Landline Telephone Rental / Calls,Pasley Road Health Centre (PROPCO),VIRGIN MEDIA BUSINESS,853083001/004/0522,140.1
Department of Health,Leicestershire Partnership NHS Trust,17/05/2022,Landline Telephone Rental / Calls,"Prince Philip House (P96, LPT)",VIRGIN MEDIA BUSINESS,853083001/004/0522,1528.26
Department of Health,Leicestershire Partnership NHS Trust,17/05/2022,Landline Telephone Rental / Calls,Rushey Mead Health Centre (PROPCO),VIRGIN MEDIA BUSINESS,853083001/004/0522,74.12
Department of Health,Leicestershire Partnership NHS Trust,17/05/2022,Landline Telephone Rental / Calls,"Shepshed Health Centre (P123, LPT)",VIRGIN MEDIA BUSINESS,853083001/004/0522,11.33
Department of Health,Leicestershire Partnership NHS Trust,17/05/2022,Landline Telephone Rental / Calls,"Springfield Road Health Centre (P92, LPT)",VIRGIN MEDIA BUSINESS,853083001/004/0522,315.14
Department of Health,Leicestershire Partnership NHS Trust,17/05/2022,Landline Telephone Rental / Calls,"St Peters Health Center (Part 1st and 2nd floors) (P66, LPT)",VIRGIN MEDIA BUSINESS,853083001/004/0522,1717.72
Department of Health,Leicestershire Partnership NHS Trust,17/05/2022,Landline Telephone Rental / Calls,"Swithland House - London Road 352 (P44, LPT)",VIRGIN MEDIA BUSINESS,853083001/004/0522,275.08
Department of Health,Leicestershire Partnership NHS Trust,17/05/2022,Landline Telephone Rental / Calls,"The Cedars (P19, LPT)",VIRGIN MEDIA BUSINESS,853083001/004/0522,684.91
Department of Health,Leicestershire Partnership NHS Trust,17/05/2022,Landline Telephone Rental / Calls,"The Willows - Cordelia Close (P22, LPT)",VIRGIN MEDIA BUSINESS,853083001/004/0522,487.51
Department of Health,Leicestershire Partnership NHS Trust,17/05/2022,Landline Telephone Rental / Calls,"Valentine Centre (P3, LPT)",VIRGIN MEDIA BUSINESS,853083001/004/0522,1832.95
Department of Health,Leicestershire Partnership NHS Trust,17/05/2022,Landline Telephone Rental / Calls,Warren Park Way 25 (PROPCO),VIRGIN MEDIA BUSINESS,853083001/004/0522,718.88
Department of Health,Leicestershire Partnership NHS Trust,17/05/2022,Landline Telephone Rental / Calls,"Westcotes Group -Westcotes House (P78, LPT)",VIRGIN MEDIA BUSINESS,853083001/004/0522,1377.1
Department of Health,Leicestershire Partnership NHS Trust,17/05/2022,Landline Telephone Rental / Calls,"Winstanley Drive Health Centre (P8, LPT)",VIRGIN MEDIA BUSINESS,853083001/004/0522,448.42
Department of Health,Leicestershire Partnership NHS Trust,17/05/2022,Senior Manager - Band 8B,LLR Health & Wellbeing Hub,NHS EAST LEICS & RUTLAND CCG,7016703692,33676
Department of Health,Leicestershire Partnership NHS Trust,18/05/2022,WIP Project Not in BS - Buildings excl Dwellings,Work in Progress,TILBURY DOUGLAS CONSTRUCTION LTD,22050173,37341.12
Department of Health,Leicestershire Partnership NHS Trust,18/05/2022,WIP Project Not in BS - Buildings excl Dwellings,Work in Progress,TILBURY DOUGLAS CONSTRUCTION LTD,22050175,48409.31
Department of Health,Leicestershire Partnership NHS Trust,18/05/2022,WIP Project Not in BS - Buildings excl Dwellings,Work in Progress,TILBURY DOUGLAS CONSTRUCTION LTD,22050177,30080.86
Department of Health,Leicestershire Partnership NHS Trust,18/05/2022,WIP Project Not in BS - Buildings excl Dwellings,Work in Progress,TILBURY DOUGLAS CONSTRUCTION LTD,22050178,80395.19
Department of Health,Leicestershire Partnership NHS Trust,19/05/2022,NURSE - BAND 2 - AGENCY,Beechwood Ward,HCL NURSING,HNSI0001030,6524.45
Department of Health,Leicestershire Partnership NHS Trust,19/05/2022,NURSE - BAND 5 - AGENCY,Beechwood Ward,HCL NURSING,HNSI0001030,3923.1
Department of Health,Leicestershire Partnership NHS Trust,19/05/2022,NURSE - BAND 5 - AGENCY,City Planned Care - East,HCL NURSING,HNSI0001030,13517.19
Department of Health,Leicestershire Partnership NHS Trust,19/05/2022,NURSE - BAND 5 - AGENCY,City Planned Care - West,HCL NURSING,HNSI0001030,12868.52
Department of Health,Leicestershire Partnership NHS Trust,19/05/2022,NURSE - BAND 2 - AGENCY,Clarendon Ward,HCL NURSING,HNSI0001030,5526.05
Department of Health,Leicestershire Partnership NHS Trust,19/05/2022,NURSE - BAND 5 - AGENCY,Clarendon Ward,HCL NURSING,HNSI0001030,9804.82
Department of Health,Leicestershire Partnership NHS Trust,19/05/2022,NURSE - BAND 2 - AGENCY,Coalville Snibston Ward,HCL NURSING,HNSI0001030,3126.9
Department of Health,Leicestershire Partnership NHS Trust,19/05/2022,NURSE - BAND 5 - AGENCY,Coalville Snibston Ward,HCL NURSING,HNSI0001030,4469.6
Department of Health,Leicestershire Partnership NHS Trust,19/05/2022,NURSE - BAND 2 - AGENCY,Coalville Ward 2,HCL NURSING,HNSI0001030,1244.39
Department of Health,Leicestershire Partnership NHS Trust,19/05/2022,NURSE - BAND 5 - AGENCY,Coalville Ward 2,HCL NURSING,HNSI0001030,1573.98
Department of Health,Leicestershire Partnership NHS Trust,19/05/2022,NURSE - BAND 2 - AGENCY,Dalgliesh Ward,HCL NURSING,HNSI0001030,2027.1
Department of Health,Leicestershire Partnership NHS Trust,19/05/2022,NURSE - BAND 5 - AGENCY,Dalgliesh Ward,HCL NURSING,HNSI0001030,520.04
Department of Health,Leicestershire Partnership NHS Trust,19/05/2022,NURSE - BAND 5 - AGENCY,"East Planned Care - Oadby,Wigston & Harborough",HCL NURSING,HNSI0001030,67.76
Department of Health,Leicestershire Partnership NHS Trust,19/05/2022,NURSE - BAND 2 - AGENCY,H&B Comm Hosp East Ward,HCL NURSING,HNSI0001030,6897.59
Department of Health,Leicestershire Partnership NHS Trust,19/05/2022,NURSE - BAND 5 - AGENCY,H&B Comm Hosp East Ward,HCL NURSING,HNSI0001030,6853.28
Department of Health,Leicestershire Partnership NHS Trust,19/05/2022,NURSE - BAND 2 - AGENCY,H&B Comm Hosp North Ward,HCL NURSING,HNSI0001030,8164.28
Department of Health,Leicestershire Partnership NHS Trust,19/05/2022,NURSE - BAND 5 - AGENCY,H&B Comm Hosp North Ward,HCL NURSING,HNSI0001030,4928.36
Department of Health,Leicestershire Partnership NHS Trust,19/05/2022,NURSE - BAND 2 - AGENCY,Lough Swithland Ward,HCL NURSING,HNSI0001030,3582.18
Department of Health,Leicestershire Partnership NHS Trust,19/05/2022,NURSE - BAND 5 - AGENCY,Lough Swithland Ward,HCL NURSING,HNSI0001030,5661.12
Department of Health,Leicestershire Partnership NHS Trust,19/05/2022,NURSE - BAND 2 - AGENCY,Non Recurrent 2012/13,HCL NURSING,HNSI0001030,176.36
Department of Health,Leicestershire Partnership NHS Trust,19/05/2022,NURSE - BAND 2 - AGENCY,Rutland Ward Nursing,HCL NURSING,HNSI0001030,3867.76
Department of Health,Leicestershire Partnership NHS Trust,19/05/2022,NURSE - BAND 5 - AGENCY,Rutland Ward Nursing,HCL NURSING,HNSI0001030,3467.28
Department of Health,Leicestershire Partnership NHS Trust,19/05/2022,NURSE - BAND 2 - AGENCY,St Lukes Stroke Ward,HCL NURSING,HNSI0001030,6357.5
Department of Health,Leicestershire Partnership NHS Trust,19/05/2022,NURSE - BAND 5 - AGENCY,St Lukes Stroke Ward,HCL NURSING,HNSI0001030,2287.89
Department of Health,Leicestershire Partnership NHS Trust,19/05/2022,NURSE - BAND 2 - AGENCY,St Lukes Ward 3,HCL NURSING,HNSI0001030,3829.26
Department of Health,Leicestershire Partnership NHS Trust,19/05/2022,NURSE - BAND 5 - AGENCY,St Lukes Ward 3,HCL NURSING,HNSI0001030,1475
Department of Health,Leicestershire Partnership NHS Trust,19/05/2022,NURSE - BAND 2 - AGENCY,Wakerley Ward,HCL NURSING,HNSI0001030,7467.11
Department of Health,Leicestershire Partnership NHS Trust,19/05/2022,NURSE - BAND 5 - AGENCY,Wakerley Ward,HCL NURSING,HNSI0001030,6514.62
Department of Health,Leicestershire Partnership NHS Trust,19/05/2022,Interpreting services,Ujala Resource Centre,WORD360,104531,31318.21
Department of Health,Leicestershire Partnership NHS Trust,19/05/2022,Interpreting services,Ujala Resource Centre,WORD360,104530,25775.49
Department of Health,Leicestershire Partnership NHS Trust,19/05/2022,Healthcare Services / Recharges from Non-NHS Bodies,Adult Eating Disorder Collaborative,NAVIGO H&SC CIC,SAL-INV-7100,30447.6
Department of Health,Leicestershire Partnership NHS Trust,20/05/2022,CHP Estates Management,Merlyn Vaz Centre (CHP),COMM HLTH PARTNERSHIPS LTD,60242152,30202.89
Department of Health,Leicestershire Partnership NHS Trust,20/05/2022,CHP Estates Management,Merlyn Vaz Centre (CHP),COMM HLTH PARTNERSHIPS LTD,60242149,32051.45
Department of Health,Leicestershire Partnership NHS Trust,20/05/2022,Med GP Trainees,Medical Trainees,ST.HELENS & KNOWSLEY NHS TRUST,16813706,75000
Department of Health,Leicestershire Partnership NHS Trust,23/05/2022,Rent,Meridian (EFM Base),TRUSTEES OF WATER ROSE RETIRE FUND,3,30000
Department of Health,Leicestershire Partnership NHS Trust,23/05/2022,CHP Estates Management,Merlyn Vaz Centre (CHP),COMM HLTH PARTNERSHIPS LTD,60242776,30202.89
Department of Health,Leicestershire Partnership NHS Trust,23/05/2022,CHP Estates Management,Merlyn Vaz Centre (CHP),COMM HLTH PARTNERSHIPS LTD,60242773,32051.45
Department of Health,Leicestershire Partnership NHS Trust,23/05/2022,Nurse - Band 6 -Agency,AMH - Central Access Point,HCL NURSING,HNSI0001035,2555.07
Department of Health,Leicestershire Partnership NHS Trust,23/05/2022,Nurse - Band 6 -Agency,Adult County West Leicestershire CMHT,HCL NURSING,HNSI0001035,863.95
Department of Health,Leicestershire Partnership NHS Trust,23/05/2022,NURSE - BAND 2 - AGENCY,Agnes Unit,HCL NURSING,HNSI0001035,24838.88
Department of Health,Leicestershire Partnership NHS Trust,23/05/2022,NURSE - BAND 5 - AGENCY,Agnes Unit,HCL NURSING,HNSI0001035,16238.64
Department of Health,Leicestershire Partnership NHS Trust,23/05/2022,NURSE - BAND 5 - AGENCY,Ashby Ward (Bradgate Unit),HCL NURSING,HNSI0001035,2744.42
Department of Health,Leicestershire Partnership NHS Trust,23/05/2022,NURSE - BAND 2 - AGENCY,Aston Ward (Bradgate Unit),HCL NURSING,HNSI0001035,8047.75
Department of Health,Leicestershire Partnership NHS Trust,23/05/2022,NURSE - BAND 5 - AGENCY,Aston Ward (Bradgate Unit),HCL NURSING,HNSI0001035,16178.61
Department of Health,Leicestershire Partnership NHS Trust,23/05/2022,NURSE - BAND 2 - AGENCY,Beaumont Ward - Bradgate Unit,HCL NURSING,HNSI0001035,2563.41
Department of Health,Leicestershire Partnership NHS Trust,23/05/2022,NURSE - BAND 5 - AGENCY,Beaumont Ward - Bradgate Unit,HCL NURSING,HNSI0001035,10276.46
Department of Health,Leicestershire Partnership NHS Trust,23/05/2022,NURSE - BAND 2 - AGENCY,Belvoir Psychiatric Intensive Care Unit,HCL NURSING,HNSI0001035,8824.57
Department of Health,Leicestershire Partnership NHS Trust,23/05/2022,NURSE - BAND 5 - AGENCY,Belvoir Psychiatric Intensive Care Unit,HCL NURSING,HNSI0001035,4136.35
Department of Health,Leicestershire Partnership NHS Trust,23/05/2022,NURSE - BAND 2 - AGENCY,Bosworth Ward - Bradgate Unit,HCL NURSING,HNSI0001035,1236.38
Department of Health,Leicestershire Partnership NHS Trust,23/05/2022,NURSE - BAND 5 - AGENCY,Bosworth Ward - Bradgate Unit,HCL NURSING,HNSI0001035,3906.33
Department of Health,Leicestershire Partnership NHS Trust,23/05/2022,NURSE - BAND 2 - AGENCY,Cedar (Willows),HCL NURSING,HNSI0001035,2138.96
Department of Health,Leicestershire Partnership NHS Trust,23/05/2022,NURSE - BAND 5 - AGENCY,Cedar (Willows),HCL NURSING,HNSI0001035,1569.18
Department of Health,Leicestershire Partnership NHS Trust,23/05/2022,Nurse - Band 6 -Agency,City West CMHT MHSOP,HCL NURSING,HNSI0001035,1689.6
Department of Health,Leicestershire Partnership NHS Trust,23/05/2022,NURSE - BAND 2 - AGENCY,Coleman Ward,HCL NURSING,HNSI0001035,9712.5
Department of Health,Leicestershire Partnership NHS Trust,23/05/2022,NURSE - BAND 5 - AGENCY,Coleman Ward,HCL NURSING,HNSI0001035,3412.13
Department of Health,Leicestershire Partnership NHS Trust,23/05/2022,NURSE - BAND 5 - AGENCY,Crisis Resolution,HCL NURSING,HNSI0001035,457.35
Department of Health,Leicestershire Partnership NHS Trust,23/05/2022,NURSE - BAND 2 - AGENCY,Griffin Ward (HPC),HCL NURSING,HNSI0001035,11272.25
Department of Health,Leicestershire Partnership NHS Trust,23/05/2022,NURSE - BAND 5 - AGENCY,Griffin Ward (HPC),HCL NURSING,HNSI0001035,2013.92
Department of Health,Leicestershire Partnership NHS Trust,23/05/2022,NURSE - BAND 2 - AGENCY,Heather Ward,HCL NURSING,HNSI0001035,1091.2
Department of Health,Leicestershire Partnership NHS Trust,23/05/2022,NURSE - BAND 2 - AGENCY,Kirby Ward,HCL NURSING,HNSI0001035,3216.12
Department of Health,Leicestershire Partnership NHS Trust,23/05/2022,NURSE - BAND 5 - AGENCY,Kirby Ward,HCL NURSING,HNSI0001035,1296.1
Department of Health,Leicestershire Partnership NHS Trust,23/05/2022,NURSE - BAND 2 - AGENCY,Maple Ward,HCL NURSING,HNSI0001035,1515.38
Department of Health,Leicestershire Partnership NHS Trust,23/05/2022,NURSE - BAND 5 - AGENCY,Maple Ward,HCL NURSING,HNSI0001035,2257.8
Department of Health,Leicestershire Partnership NHS Trust,23/05/2022,Nurse - Band 6 -Agency,Mental Health Liaison Team,HCL NURSING,HNSI0001035,1669.01
Department of Health,Leicestershire Partnership NHS Trust,23/05/2022,NURSE - BAND 2 - AGENCY,Mill Lodge,HCL NURSING,HNSI0001035,1514.46
Department of Health,Leicestershire Partnership NHS Trust,23/05/2022,NURSE - BAND 5 - AGENCY,Mill Lodge,HCL NURSING,HNSI0001035,6808.39
Department of Health,Leicestershire Partnership NHS Trust,23/05/2022,NURSE - BAND 2 - AGENCY,Phoenix Ward (HPC),HCL NURSING,HNSI0001035,6591.39
Department of Health,Leicestershire Partnership NHS Trust,23/05/2022,NURSE - BAND 5 - AGENCY,Phoenix Ward (HPC),HCL NURSING,HNSI0001035,907.6
Department of Health,Leicestershire Partnership NHS Trust,23/05/2022,NURSE - BAND 2 - AGENCY,Place Of Safety Assessment Unit,HCL NURSING,HNSI0001035,694.29
Department of Health,Leicestershire Partnership NHS Trust,23/05/2022,NURSE - BAND 5 - AGENCY,Place Of Safety Assessment Unit,HCL NURSING,HNSI0001035,3813.29
Department of Health,Leicestershire Partnership NHS Trust,23/05/2022,NURSE - BAND 2 - AGENCY,Stewart House,HCL NURSING,HNSI0001035,1869.74
Department of Health,Leicestershire Partnership NHS Trust,23/05/2022,NURSE - BAND 5 - AGENCY,Stewart House,HCL NURSING,HNSI0001035,7637.26
Department of Health,Leicestershire Partnership NHS Trust,23/05/2022,NURSE - BAND 2 - AGENCY,Sycamore (Willows),HCL NURSING,HNSI0001035,1205.23
Department of Health,Leicestershire Partnership NHS Trust,23/05/2022,NURSE - BAND 5 - AGENCY,Sycamore (Willows),HCL NURSING,HNSI0001035,3287.13
Department of Health,Leicestershire Partnership NHS Trust,23/05/2022,NURSE - BAND 2 - AGENCY,Thornton Ward - Bradgate Unit,HCL NURSING,HNSI0001035,978.25
Department of Health,Leicestershire Partnership NHS Trust,23/05/2022,NURSE - BAND 2 - AGENCY,Urgent Care Hub,HCL NURSING,HNSI0001035,367.32
Department of Health,Leicestershire Partnership NHS Trust,23/05/2022,NURSE - BAND 2 - AGENCY,Watermead Ward (Bradgate Unit),HCL NURSING,HNSI0001035,890.85
Department of Health,Leicestershire Partnership NHS Trust,23/05/2022,NURSE - BAND 5 - AGENCY,Watermead Ward (Bradgate Unit),HCL NURSING,HNSI0001035,6989.5
Department of Health,Leicestershire Partnership NHS Trust,23/05/2022,NURSE - BAND 2 - AGENCY,Welford Ward,HCL NURSING,HNSI0001035,7685.79
Department of Health,Leicestershire Partnership NHS Trust,23/05/2022,NURSE - BAND 5 - AGENCY,Welford Ward,HCL NURSING,HNSI0001035,3086.33
Department of Health,Leicestershire Partnership NHS Trust,23/05/2022,Nurse - Band 6 -Agency,CAMHS HUB / CAP,HCL SOCIAL CARE,HWSI0001176,8902.47
Department of Health,Leicestershire Partnership NHS Trust,23/05/2022,Nurse - Band 6 -Agency,CAMHS Waiting List Monies,HCL SOCIAL CARE,HWSI0001176,22914.71
Department of Health,Leicestershire Partnership NHS Trust,23/05/2022,Nurse - Band 6 -Agency,Crisis Response and Home Treatment,HCL SOCIAL CARE,HWSI0001176,1934.86
Department of Health,Leicestershire Partnership NHS Trust,23/05/2022,NURSE - BAND 2 - AGENCY,CAMHS ED Team,HCL NURSING,HNSI0001037,2079.33
Department of Health,Leicestershire Partnership NHS Trust,23/05/2022,NURSE - BAND 2 - AGENCY,CAMHS Inpatient Service,HCL NURSING,HNSI0001037,11080.14
Department of Health,Leicestershire Partnership NHS Trust,23/05/2022,NURSE - BAND 5 - AGENCY,CAMHS Inpatient Service,HCL NURSING,HNSI0001037,4609.84
Department of Health,Leicestershire Partnership NHS Trust,23/05/2022,Nurse - Band 6 -Agency,CAMHS Waiting List Monies,HCL NURSING,HNSI0001037,4607.19
Department of Health,Leicestershire Partnership NHS Trust,23/05/2022,NURSE - BAND 2 - AGENCY,Langley Ward ED Inpatient Service,HCL NURSING,HNSI0001037,2790.71
Department of Health,Leicestershire Partnership NHS Trust,23/05/2022,NURSE - BAND 5 - AGENCY,Langley Ward ED Inpatient Service,HCL NURSING,HNSI0001037,3864.25
Department of Health,Leicestershire Partnership NHS Trust,23/05/2022,Crs_NHS_LT1y -Resus Inventory Supplied.,Balance Sheet Collection,SUPPLY CHAIN CO LTD,1123036622,40217.28
Department of Health,Leicestershire Partnership NHS Trust,23/05/2022,Rent,"OSL House (P54, LPT)",CABOT TRUSTEES LTD,69,41700
Department of Health,Leicestershire Partnership NHS Trust,23/05/2022,OCCUPATIONAL THERAPIST - AGENCY,AMH Inpatient OT,MSI RECRUITMENT,MSIR150422,1322.29
Department of Health,Leicestershire Partnership NHS Trust,23/05/2022,Professional & Technical Agency,Adult City Central CMHT - St Peters,MSI RECRUITMENT,MSIR150422,935.64
Department of Health,Leicestershire Partnership NHS Trust,23/05/2022,OCCUPATIONAL THERAPIST - AGENCY,Asperger Diagnostic Service,MSI RECRUITMENT,MSIR150422,2192.88
Department of Health,Leicestershire Partnership NHS Trust,23/05/2022,OCCUPATIONAL THERAPIST - AGENCY,Crisis Resolution,MSI RECRUITMENT,MSIR150422,363.06
Department of Health,Leicestershire Partnership NHS Trust,23/05/2022,PHYSIOTHERAPY - AGENCY,East Planned Care - Blaby/Lutt - Therapy,MSI RECRUITMENT,MSIR150422,949.25
Department of Health,Leicestershire Partnership NHS Trust,23/05/2022,PHYSIOTHERAPY - AGENCY,MHSOP Inpatient Therapy - Bennion,MSI RECRUITMENT,MSIR150422,1356.36
Department of Health,Leicestershire Partnership NHS Trust,23/05/2022,PHYSIOTHERAPY - AGENCY,MSK Physiotherapy,MSI RECRUITMENT,MSIR150422,1340.16
Department of Health,Leicestershire Partnership NHS Trust,23/05/2022,PAMS - AGENCY,N&D Primary Care and Mental Health,MSI RECRUITMENT,MSIR150422,273.4
Department of Health,Leicestershire Partnership NHS Trust,23/05/2022,OCCUPATIONAL THERAPIST - AGENCY,Neuro/Stroke Rehab Service,MSI RECRUITMENT,MSIR150422,2923.92
Department of Health,Leicestershire Partnership NHS Trust,23/05/2022,PHYSIOTHERAPY - AGENCY,Neuro/Stroke Rehab Service,MSI RECRUITMENT,MSIR150422,1608.06
Department of Health,Leicestershire Partnership NHS Trust,23/05/2022,PHYSIOTHERAPY - AGENCY,Non Recurrent 2012/13,MSI RECRUITMENT,MSIR150422,7416.86
Department of Health,Leicestershire Partnership NHS Trust,23/05/2022,PHYSIOTHERAPY - AGENCY,West Planned Care  - Charnwood Hub - Therapy,MSI RECRUITMENT,MSIR150422,1660.92
Department of Health,Leicestershire Partnership NHS Trust,23/05/2022,PHYSIOTHERAPY - AGENCY,West Planned Care  - Hinckley Hub - Therapy,MSI RECRUITMENT,MSIR150422,2723.1
Department of Health,Leicestershire Partnership NHS Trust,23/05/2022,OCCUPATIONAL THERAPIST - AGENCY,AMH Inpatient OT,MSI RECRUITMENT,MSIR290422,1090.01
Department of Health,Leicestershire Partnership NHS Trust,23/05/2022,Professional & Technical Agency,Adult City Central CMHT - St Peters,MSI RECRUITMENT,MSIR290422,730.97
Department of Health,Leicestershire Partnership NHS Trust,23/05/2022,OCCUPATIONAL THERAPIST - AGENCY,Asperger Diagnostic Service,MSI RECRUITMENT,MSIR290422,1754.3
Department of Health,Leicestershire Partnership NHS Trust,23/05/2022,PHYSIOTHERAPY - AGENCY,East Planned Care - Blaby/Lutt - Therapy,MSI RECRUITMENT,MSIR290422,318.9
Department of Health,Leicestershire Partnership NHS Trust,23/05/2022,PHYSIOTHERAPY - AGENCY,MHSOP Inpatient Therapy - Bennion,MSI RECRUITMENT,MSIR290422,811.76
Department of Health,Leicestershire Partnership NHS Trust,23/05/2022,PHYSIOTHERAPY - AGENCY,MSK Physiotherapy,MSI RECRUITMENT,MSIR290422,2144.26
Department of Health,Leicestershire Partnership NHS Trust,23/05/2022,PAMS - AGENCY,N&D Primary Care and Mental Health,MSI RECRUITMENT,MSIR290422,273.4
Department of Health,Leicestershire Partnership NHS Trust,23/05/2022,OCCUPATIONAL THERAPIST - AGENCY,Neuro/Stroke Rehab Service,MSI RECRUITMENT,MSIR290422,1413.95
Department of Health,Leicestershire Partnership NHS Trust,23/05/2022,PHYSIOTHERAPY - AGENCY,Neuro/Stroke Rehab Service,MSI RECRUITMENT,MSIR290422,1478.42
Department of Health,Leicestershire Partnership NHS Trust,23/05/2022,OCCUPATIONAL THERAPIST - AGENCY,Non Recurrent 2012/13,MSI RECRUITMENT,MSIR290422,11981.32
Department of Health,Leicestershire Partnership NHS Trust,23/05/2022,PHYSIOTHERAPY - AGENCY,Non Recurrent 2012/13,MSI RECRUITMENT,MSIR290422,2693.18
Department of Health,Leicestershire Partnership NHS Trust,23/05/2022,OCCUPATIONAL THERAPIST - AGENCY,West Planned Care  - Charnwood Hub - Therapy,MSI RECRUITMENT,MSIR290422,536.06
Department of Health,Leicestershire Partnership NHS Trust,23/05/2022,PHYSIOTHERAPY - AGENCY,West Planned Care  - Charnwood Hub - Therapy,MSI RECRUITMENT,MSIR290422,829.38
Department of Health,Leicestershire Partnership NHS Trust,23/05/2022,PHYSIOTHERAPY - AGENCY,West Planned Care  - Hinckley Hub - Therapy,MSI RECRUITMENT,MSIR290422,4717.49
Department of Health,Leicestershire Partnership NHS Trust,23/05/2022,Computer License  Fees,Finance Department,VERSION 1,INVSOL013395,37544.4
Department of Health,Leicestershire Partnership NHS Trust,24/05/2022,NURSE - BAND 2 - AGENCY,Beechwood Ward,HCL NURSING,HNSI0001036,7526.81
Department of Health,Leicestershire Partnership NHS Trust,24/05/2022,NURSE - BAND 5 - AGENCY,Beechwood Ward,HCL NURSING,HNSI0001036,4774.15
Department of Health,Leicestershire Partnership NHS Trust,24/05/2022,NURSE - BAND 3 - AGENCY,CHS Phlebotomy Service,HCL NURSING,HNSI0001036,229.78
Department of Health,Leicestershire Partnership NHS Trust,24/05/2022,NURSE - BAND 5 - AGENCY,City Planned Care - East,HCL NURSING,HNSI0001036,12755.29
Department of Health,Leicestershire Partnership NHS Trust,24/05/2022,NURSE - BAND 5 - AGENCY,City Planned Care - West,HCL NURSING,HNSI0001036,12445.79
Department of Health,Leicestershire Partnership NHS Trust,24/05/2022,NURSE - BAND 2 - AGENCY,Clarendon Ward,HCL NURSING,HNSI0001036,3725.58
Department of Health,Leicestershire Partnership NHS Trust,24/05/2022,NURSE - BAND 5 - AGENCY,Clarendon Ward,HCL NURSING,HNSI0001036,4820.39
Department of Health,Leicestershire Partnership NHS Trust,24/05/2022,NURSE - BAND 2 - AGENCY,Coalville Snibston Ward,HCL NURSING,HNSI0001036,4196.57
Department of Health,Leicestershire Partnership NHS Trust,24/05/2022,NURSE - BAND 5 - AGENCY,Coalville Snibston Ward,HCL NURSING,HNSI0001036,2980.37
Department of Health,Leicestershire Partnership NHS Trust,24/05/2022,NURSE - BAND 2 - AGENCY,Coalville Ward 2,HCL NURSING,HNSI0001036,1624.59
Department of Health,Leicestershire Partnership NHS Trust,24/05/2022,NURSE - BAND 5 - AGENCY,Coalville Ward 2,HCL NURSING,HNSI0001036,3371.81
Department of Health,Leicestershire Partnership NHS Trust,24/05/2022,NURSE - BAND 2 - AGENCY,Dalgliesh Ward,HCL NURSING,HNSI0001036,3128.7
Department of Health,Leicestershire Partnership NHS Trust,24/05/2022,NURSE - BAND 5 - AGENCY,Dalgliesh Ward,HCL NURSING,HNSI0001036,1050.73
Department of Health,Leicestershire Partnership NHS Trust,24/05/2022,NURSE - BAND 5 - AGENCY,"East Planned Care - Oadby,Wigston & Harborough",HCL NURSING,HNSI0001036,1942.55
Department of Health,Leicestershire Partnership NHS Trust,24/05/2022,NURSE - BAND 2 - AGENCY,H&B Comm Hosp East Ward,HCL NURSING,HNSI0001036,7469.17
Department of Health,Leicestershire Partnership NHS Trust,24/05/2022,NURSE - BAND 5 - AGENCY,H&B Comm Hosp East Ward,HCL NURSING,HNSI0001036,3129.23
Department of Health,Leicestershire Partnership NHS Trust,24/05/2022,NURSE - BAND 2 - AGENCY,H&B Comm Hosp North Ward,HCL NURSING,HNSI0001036,3770.93
Department of Health,Leicestershire Partnership NHS Trust,24/05/2022,NURSE - BAND 5 - AGENCY,H&B Comm Hosp North Ward,HCL NURSING,HNSI0001036,4634.52
Department of Health,Leicestershire Partnership NHS Trust,24/05/2022,NURSE - BAND 2 - AGENCY,Lough Swithland Ward,HCL NURSING,HNSI0001036,1053.54
Department of Health,Leicestershire Partnership NHS Trust,24/05/2022,NURSE - BAND 5 - AGENCY,Lough Swithland Ward,HCL NURSING,HNSI0001036,996.39
Department of Health,Leicestershire Partnership NHS Trust,24/05/2022,NURSE - BAND 5 - AGENCY,Non Recurrent 2012/13,HCL NURSING,HNSI0001036,360.57
Department of Health,Leicestershire Partnership NHS Trust,24/05/2022,NURSE - BAND 2 - AGENCY,Rutland Ward Nursing,HCL NURSING,HNSI0001036,2898.17
Department of Health,Leicestershire Partnership NHS Trust,24/05/2022,NURSE - BAND 5 - AGENCY,Rutland Ward Nursing,HCL NURSING,HNSI0001036,3489.37
Department of Health,Leicestershire Partnership NHS Trust,24/05/2022,NURSE - BAND 2 - AGENCY,St Lukes Stroke Ward,HCL NURSING,HNSI0001036,3230.96
Department of Health,Leicestershire Partnership NHS Trust,24/05/2022,NURSE - BAND 5 - AGENCY,St Lukes Stroke Ward,HCL NURSING,HNSI0001036,2142.45
Department of Health,Leicestershire Partnership NHS Trust,24/05/2022,NURSE - BAND 2 - AGENCY,St Lukes Ward 3,HCL NURSING,HNSI0001036,2473.68
Department of Health,Leicestershire Partnership NHS Trust,24/05/2022,NURSE - BAND 5 - AGENCY,St Lukes Ward 3,HCL NURSING,HNSI0001036,2231.38
Department of Health,Leicestershire Partnership NHS Trust,24/05/2022,NURSE - BAND 2 - AGENCY,Wakerley Ward,HCL NURSING,HNSI0001036,4430.82
Department of Health,Leicestershire Partnership NHS Trust,24/05/2022,NURSE - BAND 5 - AGENCY,Wakerley Ward,HCL NURSING,HNSI0001036,2282.21
Department of Health,Leicestershire Partnership NHS Trust,24/05/2022,Healthcare Services / Recharges from Non-NHS Bodies,Adult Eating Disorder Collaborative,PRIORY GROUP,301APR22LECAED,41223.17
Department of Health,Leicestershire Partnership NHS Trust,26/05/2022,NURSE - BAND 2 - AGENCY,CAMHS Inpatient Service,Prometheus complex care ltd,543,48468
Department of Health,Leicestershire Partnership NHS Trust,26/05/2022,NURSE - BAND 2 - AGENCY,CAMHS Inpatient Service,Prometheus complex care ltd,590,48468
Department of Health,Leicestershire Partnership NHS Trust,26/05/2022,NURSE - BAND 2 - AGENCY,CAMHS Inpatient Service,Prometheus complex care ltd,623,42579
Department of Health,Leicestershire Partnership NHS Trust,26/05/2022,NURSE - BAND 2 - AGENCY,CAMHS Inpatient Service,Prometheus complex care ltd,657,22907
Department of Health,Leicestershire Partnership NHS Trust,27/05/2022,Rent,Bridge Park Plaza - First Floor (LPT),FISHER HARG PROCT LTD,692902,80507.52
Department of Health,Leicestershire Partnership NHS Trust,30/05/2022,CHP Estates Management,Merlyn Vaz Centre (CHP),COMM HLTH PARTNERSHIPS LTD,60243915,32051.45
Department of Health,Leicestershire Partnership NHS Trust,30/05/2022,CHP Estates Management,Merlyn Vaz Centre (CHP),COMM HLTH PARTNERSHIPS LTD,60243918,30202.89
Department of Health,Leicestershire Partnership NHS Trust,30/05/2022,Crs_NHS_LT1y -Resus Inventory Supplied.,Balance Sheet Collection,SUPPLY CHAIN CO LTD,1123039524,36727.14
Department of Health,Leicestershire Partnership NHS Trust,30/05/2022,WIP Project Not in BS - Buildings excl Dwellings,Work in Progress,TILBURY DOUGLAS CONSTRUCTION LTD,22050364,112389.41
